fUST/lending_fUST_20241125
["ID","MTS","AMOUNT","RATE_DAILY","PERIOD"]
[343242084,1732524641358,-10125.070407,0.0001,2]
[343242085,1732524642755,153.0,0.00027753,30]
[343242109,1732524643474,-33575.13199377,0.0001,2]
[343242111,1732524643486,-1248.19505398,0.0001,2]
[343242227,1732524674716,153.0,0.00027753,30]
[343242228,1732524703290,153.0,0.00027753,30]
[343242229,1732524734514,153.0,0.00027753,30]
[343242230,1732524763375,153.0,0.00027753,30]
[343242231,1732524794468,153.0,0.00027753,30]
[343242232,1732524823384,153.0,0.00027753,30]
[343242233,1732524854722,153.0,0.00027753,30]
[343242234,1732524883200,153.0,0.00027753,30]
[343242235,1732524916295,153.0,0.00027753,30]
[343242238,1732524943198,153.0,0.00027753,30]
[343242240,1732525111019,1439.62779446,0.00028,30]
[343242248,1732525615138,-235.7522136,9.999e-05,2]
[343242303,1732525832683,-292.63305733,9.9e-05,2]
[343242305,1732525832694,-292.63305733,0.0001,2]
[343242307,1732525832703,-3837.47715887,0.0001,2]
[343242310,1732525832719,-532.27763882,0.0001,2]
[343242312,1732525832730,-186619.53200835,0.0001,2]
[343242314,1732525832740,-578.91083456,0.00010859,2]
[343242316,1732525832749,-398.92,0.00010959,2]
[343242318,1732525832758,-155.54460991,0.000129,2]
[343242320,1732525832768,-296.8827367,0.00013698,2]
[343242322,1732525832779,-500.0,0.00013698,2]
[343242324,1732525832788,-500.0,0.00013698,2]
[343242326,1732525832798,-500.0,0.00013698,2]
[343242328,1732525832808,-500.0,0.00013698,2]
[343242329,1732525832817,-500.0,0.00013698,2]
[343242330,1732525832827,-263.65230002,0.00013698,2]
[343242332,1732525832837,-546.17975048,0.00013698,2]
[343242334,1732525832846,-500.0,0.00013698,2]
[343242335,1732525832856,-500.0,0.00013698,2]
[343242336,1732525832866,-500.0,0.00013698,2]
[343242337,1732525832876,-500.0,0.00013698,2]
[343242338,1732525832885,-500.0,0.00013698,2]
[343242340,1732525832895,-500.0,0.00013698,2]
[343242341,1732525832905,-500.0,0.00013698,2]
[343242342,1732525832915,-200.0,0.00013698,2]
[343242343,1732525832924,-352.51800943,0.00013698,2]
[343242344,1732525832933,-500.0,0.00013698,2]
[343242345,1732525832942,-533.51980815,0.00013698,2]
[343242346,1732525832951,-500.0,0.00013698,2]
[343242347,1732525832963,-500.0,0.00013698,2]
[343242348,1732525832973,-500.0,0.00013698,2]
[343242349,1732525832982,-500.0,0.00013698,2]
[343242350,1732525832992,-500.0,0.00013698,2]
[343242351,1732525833003,-503.84813485,0.00013698,2]
[343242352,1732525833013,-159.54511463,0.00013699,2]
[343242353,1732525833022,-500.0,0.00013699,2]
[343242354,1732525833034,-500.0,0.00013699,2]
[343242355,1732525833044,-500.0,0.00013699,2]
[343242356,1732525833055,-368.48899248,0.00013699,2]
[343242357,1732525833076,-155.54460991,0.00013731,2]
[343242358,1732525833089,-165.903573,0.00013973,2]
[343242359,1732525833100,-500.79184546,0.00014191,2]
[343242360,1732525833110,-2096.2855701,0.00014343,2]
[343242361,1732525833121,-202.65595,0.00014522,2]
[343242362,1732525833131,-250.0,0.00014793,2]
[343242363,1732525833141,-578.91083456,0.00015292,2]
[343242364,1732525833151,-159.8714564,0.00015533,2]
[343242365,1732525833161,-500.5166134,0.00015533,2]
[343242366,1732525833171,-20400.59461967,0.00016502,2]
[343242367,1732525833185,-1747.10419623,0.00016502,2]
[343242368,1732525835826,-2752.3011841,0.00016502,2]
[343242369,1732525835836,-155.54460991,0.00016703,2]
[343242370,1732525835846,-175.67718325,0.00019178,2]
[343242371,1732525835855,-234.32024521,0.00019178,2]
[343242372,1732525835865,-309.37070282,0.00019178,2]
[343242373,1732525835874,-487.24713103,0.00019178,2]
[343242374,1732525835884,-500.0,0.00019178,2]
[343242375,1732525835893,-500.0,0.00019178,2]
[343242376,1732525835903,-500.0,0.00019178,2]
[343242377,1732525835912,-500.0,0.00019178,2]
[343242378,1732525835921,-500.0,0.00019178,2]
[343242379,1732525835930,-500.0,0.00019178,2]
[343242380,1732525835940,-500.0,0.00019178,2]
[343242381,1732525835949,-500.0,0.00019178,2]
[343242382,1732525835958,-500.0,0.00019178,2]
[343242383,1732525835969,-500.0,0.00019178,2]
[343242384,1732525835979,-155.54460991,0.00019676,2]
[343242385,1732525835989,-578.91083456,0.00019726,2]
[343242386,1732525836000,-500.0,0.00019993,2]
[343242387,1732525836011,-780.0,0.0002,2]
[343242388,1732525836021,-155.54460991,0.00022648,2]
[343242389,1732525836031,-167.056,0.00023519,4]
[343242390,1732525836040,-578.91083456,0.00024159,2]
[343242391,1732525836050,-155.54460991,0.0002562,2]
[343242392,1732525836060,-566.70085954,0.00026599,2]
[343242393,1732525836070,-458.0,0.00027,2]
[343242394,1732525836082,-300.224466,0.000271,19]
[343242395,1732525836091,-500.0,0.00027397,2]
[343242396,1732525836100,-500.0,0.00027476,2]
[343242397,1732525836110,-1463.62823526,0.00027476,2]
[343242414,1732525839103,-6760.00000002,0.00027476,2]
[343242441,1732525840748,-180.26619009,0.00019178,2]
[343242442,1732525840758,-2282.38834959,0.00027476,2]
[343242504,1732525843775,-464.07924748,0.00027476,2]
[343242505,1732525843784,-579.18,0.000283,2]
[343242506,1732525843793,-500.0,0.00028573,5]
[343242507,1732525843803,-4343.12711589,0.00028592,2]
[343242508,1732525843812,-578.91083456,0.00028592,2]
[343242509,1732525843821,-155.54460991,0.00028592,2]
[343242510,1732525843830,-1206.03578145,0.00028599,2]
[343242511,1732525843839,-151.888396,0.000286,7]
[343242512,1732525843848,-152.96112,0.000286,7]
[343242513,1732525843858,-151.5848,0.000286,7]
[343242514,1732525843867,-208.43,0.00028682,10]
[343242515,1732525843876,-5090.0,0.00028683,2]
[343242516,1732525843885,-292.63305733,0.00028692,2]
[343242517,1732525843895,-292.63305733,0.00028692,2]
[343242518,1732525843904,-260.852968,0.00028692,7]
[343242519,1732525843914,-151.0,0.00028692,7]
[343242520,1732525843923,-221.870908,0.00028692,7]
[343242521,1732525843933,-151.0,0.00028692,7]
[343242522,1732525843942,-197.813872,0.00028692,7]
[343242524,1732525843952,-11441.69886308,0.00028692,10]
[343242525,1732525843964,-982.37,0.00028692,10]
[343242526,1732525843976,-51057.482818,0.00028692,10]
[343242564,1732526422427,-588.88,0.00029,120]
[343242566,1732526601784,2700.80073738,0.00016,5]
[343242575,1732526774258,153.0,0.00027863,30]
[343242576,1732526774370,219.9932066,0.00027863,30]
[343242577,1732526804332,212.7413024,0.00027863,30]
[343242578,1732526834455,212.7413024,0.00027878,30]
[343242579,1732526834723,153.0,0.00027863,30]
[343242581,1732526863363,212.7413024,0.00027878,30]
[343242582,1732526893768,212.7413024,0.00027863,30]
[343242583,1732526894137,153.0,0.00027863,30]
[343242584,1732526922764,212.7413024,0.00027863,30]
[343242587,1732526954333,153.0,0.00027863,30]
[343242588,1732526954395,212.7413024,0.00027863,30]
[343242589,1732526986930,212.7413024,0.00027863,30]
[343242599,1732527014728,153.0,0.00027863,30]
[343242600,1732527015566,212.7413024,0.00027863,30]
[343242623,1732527031776,-176.645726,0.00013973,2]
[343242624,1732527031786,-24900.0,0.00025412,2]
[343242626,1732527031795,-384.991368,0.00025479,2]
[343242627,1732527031804,-250.0,0.00025607,2]
[343242628,1732527031814,-209.52445,0.00025607,2]
[343242629,1732527031823,-223.3183807,0.00025681,2]
[343242630,1732527031833,-3325.4155864,0.00025753,2]
[343242631,1732527031842,-3471.9500267,0.00025785,2]
[343242632,1732527031851,-209.52445,0.00026292,2]
[343242633,1732527031861,-300.0,0.00026574,2]
[343242634,1732527031870,-300.0,0.00026574,2]
[343242635,1732527031879,-687.92272656,0.000268,2]
[343242636,1732527031889,-176.9,0.00026853,2]
[343242637,1732527031898,-167.056,0.00026862,14]
[343242638,1732527031908,-500.0,0.00026862,2]
[343242639,1732527031918,-1232.90752744,0.00026862,2]
[343242640,1732527031928,-500.0,0.000269,2]
[343242641,1732527031937,-500.0,0.000269,2]
[343242642,1732527031947,-209.52445,0.00026977,2]
[343242643,1732527031956,-687.92272652,0.00027068,2]
[343242644,1732527031966,-687.92272652,0.00027336,2]
[343242645,1732527031975,-335.64732527,0.00027515,2]
[343242646,1732527031984,-687.92272652,0.00027604,2]
[343242647,1732527031993,-345.12993513,0.00027604,2]
[343242648,1732527032002,-687.92272652,0.00027872,2]
[343242649,1732527032015,-500.0,0.00028,2]
[343242650,1732527032025,-500.15,0.00028,3]
[343242651,1732527032121,-687.92272652,0.0002814,2]
[343242653,1732527032131,-10504.80570193,0.00028272,2]
[343242655,1732527032141,-595.39,0.000284,2]
[343242657,1732527032150,-687.92272652,0.00028408,2]
[343242659,1732527032159,-351.18054349,0.00028489,2]
[343242661,1732527032169,-182.36394558,0.00028492,2]
[343242663,1732527032178,-182.36394557,0.00028511,2]
[343242665,1732527032187,-182.36394557,0.00028531,2]
[343242667,1732527032196,-182.36394557,0.0002855,2]
[343242669,1732527032206,-394.28,0.00028582,3]
[343242671,1732527032215,-197.14,0.00028582,3]
[343242673,1732527032225,-591.43,0.00028582,3]
[343242675,1732527032234,-458.29,0.00028582,10]
[343242677,1732527032243,-1300.76,0.00028582,10]
[343242679,1732527032252,-176.9,0.00028582,2]
[343242681,1732527032264,-205.54300806,0.00028591,2]
[343242683,1732527032273,-207.81791569,0.00028591,2]
[343242686,1732527032282,-409.99992,0.00028591,2]
[343242688,1732527032291,-500.0,0.00028591,2]
[343242689,1732527032302,-500.0,0.00028591,2]
[343242692,1732527032311,-500.0,0.00028591,2]
[343242694,1732527032320,-500.0,0.00028591,2]
[343242695,1732527032329,-500.0,0.00028591,2]
[343242698,1732527032340,-500.0,0.00028591,2]
[343242700,1732527032350,-500.0,0.00028591,2]
[343242702,1732527032359,-500.0,0.00028591,2]
[343242704,1732527032369,-500.0,0.00028591,2]
[343242706,1732527032379,-159.02300286,0.00028591,2]
[343242708,1732527032390,-500.0,0.00028591,2]
[343242710,1732527032399,-500.0,0.00028591,2]
[343242712,1732527032408,-200.08156625,0.00028591,2]
[343242714,1732527032417,-500.0,0.00028591,2]
[343242716,1732527032426,-500.0,0.00028591,2]
[343242718,1732527032435,-536.84889925,0.00028591,2]
[343242720,1732527032444,-520.77911327,0.00028591,2]
[343242722,1732527032453,-500.0,0.00028591,2]
[343242723,1732527032463,-500.0,0.00028591,2]
[343242725,1732527032473,-500.0,0.00028591,2]
[343242727,1732527032482,-500.0,0.00028591,2]
[343242730,1732527032491,-196.36523,0.00028591,2]
[343242732,1732527032502,-500.0,0.00028591,2]
[343242734,1732527032512,-500.0,0.00028591,2]
[343242736,1732527032522,-170.7609888,0.00028591,2]
[343242738,1732527032532,-152.707552,0.00028592,7]
[343242740,1732527032542,-230000.0,0.00028592,2]
[343242742,1732527032552,-250000.0,0.00028592,2]
[343242744,1732527032561,-216.0,0.0002865,23]
[343242746,1732527032570,-687.92272652,0.00028676,2]
[343242748,1732527032580,-212.7413024,0.00028685,30]
[343242750,1732527032590,-153.0,0.00028685,30]
[343242752,1732527032599,-5873.64651548,0.00028691,2]
[343242754,1732527032608,-27810.25,0.000287,2]
[343242756,1732527032618,-37897.30631351,0.000287,2]
[343242758,1732527032627,-151.0,0.000287,10]
[343242760,1732527032636,-151.0,0.000287,18]
[343242762,1732527032646,-151.0,0.000287,10]
[343242764,1732527032656,-157.372488,0.000287,19]
[343242766,1732527032668,-500.0,0.00028712,30]
[343242768,1732527032678,-500.0,0.00028712,30]
[343242770,1732527032688,-500.0,0.00028712,30]
[343242772,1732527032697,-500.0,0.00028712,30]
[343242774,1732527032706,-420.0,0.00028742,2]
[343242776,1732527032715,-500.0,0.00028773,5]
[343242778,1732527032724,-500.0,0.00028773,5]
[343242780,1732527032733,-500.89544524,0.00028773,5]
[343242782,1732527032743,-502.57895296,0.00028773,5]
[343242784,1732527032752,-500.0,0.00028773,5]
[343242785,1732527032763,-323.69467503,0.00028773,5]
[343242787,1732527032772,-500.91785115,0.00028773,5]
[343242789,1732527032782,-500.0,0.00028773,5]
[343242791,1732527032791,-500.0,0.00028773,5]
[343242793,1732527032800,-500.0,0.00028773,5]
[343242795,1732527032811,-500.0,0.00028773,5]
[343242797,1732527032820,-345.12993513,0.00028775,2]
[343242799,1732527032830,-345.12993513,0.00028775,2]
[343242801,1732527032840,-1076107.37715761,0.00028776,10]
[343242804,1732527032852,-3055.7190729,0.00028776,10]
[343243153,1732527037686,-5649.88,0.00026862,2]
[343243154,1732527037696,-4219.77761039,0.00027136,2]
[343243155,1732527037708,-1430.10238961,0.00027136,2]
[343243156,1732527037717,-2581.36349883,0.0002741,2]
[343243159,1732527037992,-3068.51650117,0.0002741,2]
[343243160,1732527038002,-5649.88,0.00027684,2]
[343243161,1732527038011,-1397.21199283,0.00027958,2]
[343243162,1732527038023,-370.25218652,0.00027958,2]
[343243163,1732527038479,-3882.41582065,0.00027958,2]
[343243164,1732527038489,-1765.56589457,0.00028232,2]
[343243165,1732527038557,-3884.31410543,0.00028232,2]
[343243166,1732527038567,-1121.29139529,0.00028776,10]
[343243167,1732527038584,-5649.88,0.00028506,2]
[343243168,1732527038593,-256227.03756083,0.00028776,10]
[343243188,1732527039847,-500.0,0.00028489,2]
[343243189,1732527039857,-922.5,0.00028551,15]
[343243190,1732527039866,-500.0,0.00028712,30]
[343243191,1732527039876,-500.0,0.00028763,2]
[343243192,1732527039885,-170.78253416,0.00028774,2]
[343243193,1732527039895,-378.98294275,0.00028774,2]
[343243224,1732527042905,-855.64655832,0.00024953,5]
[343243225,1732527042914,-1210.692953,0.000286,2]
[343243226,1732527042923,-606.66727333,0.00028632,6]
[343243227,1732527042932,-500.0,0.00028712,30]
[343243228,1732527042941,-500.0,0.00028712,30]
[343243229,1732527042950,-1083.96,0.00028766,10]
[343243230,1732527042959,-1915.82382621,0.00028774,2]
[343243231,1732527042968,-650.195,0.00028774,2]
[343243232,1732527042977,-4711.442,0.00028774,2]
[343243233,1732527042986,-15263.00681285,0.00028776,10]
[343243234,1732527042997,-115390.17230617,0.00028776,10]
[343243235,1732527043008,-12819.91238233,0.00028776,10]
[343243236,1732527043019,-2011.39519475,0.00028776,10]
[343243237,1732527043033,-3043.65659502,0.00028776,10]
[343243238,1732527043044,-17408.7305,0.00028776,10]
[343243239,1732527043064,-987.35,0.00028776,10]
[343243240,1732527043075,-47491.70627968,0.00028776,10]
[343243254,1732527045874,-558.25794629,0.00019178,2]
[343243255,1732527045884,-168.37014579,0.00028776,10]
[343243262,1732527417117,2689.44759745,0.00016,5]
[343243263,1732527439673,217.32695964,0.00016,5]
[343243296,1732527974678,212.7413024,0.00027945,30]
[343243297,1732527975215,314.4148861,0.00027945,30]
[343243298,1732528004162,212.7413024,0.00027945,30]
[343243302,1732528022276,176.00078443,0.00016,5]
[343243303,1732528035022,212.3953538,0.00027945,30]
[343243450,1732528232726,-163.441017,0.00013973,2]
[343243452,1732528232737,-200.60972955,0.00019116,3]
[343243453,1732528232747,-5416.652048,0.00019216,2]
[343243455,1732528232756,-1156.4485986,0.00019344,2]
[343243457,1732528232766,-1720.2445619,0.00019421,2]
[343243459,1732528232775,-166.552129,0.00019671,2]
[343243461,1732528232785,-213.54394423,0.00019722,2]
[343243463,1732528232795,-504.0538845,0.00019882,2]
[343243465,1732528232808,-300.0,0.000199,2]
[343243467,1732528232819,-5416.652048,0.00019901,2]
[343243469,1732528232829,-1414.344943,0.00019922,2]
[343243470,1732528232839,-729.3411097,0.00019945,2]
[343243472,1732528232848,-16981.0,0.0002,2]
[343243473,1732528232858,-924.681082,0.000203,2]
[343243474,1732528232867,-152.0,0.00020378,2]
[343243475,1732528232876,-5416.652048,0.00020586,2]
[343243476,1732528232885,-1889.01284749,0.00020586,2]
[343243477,1732528232895,-213.54394423,0.00020685,2]
[343243478,1732528232904,-1404.33842731,0.00020688,2]
[343243479,1732528232913,-500.0,0.00020784,2]
[343243480,1732528232923,-2264.53,0.00020784,2]
[343243481,1732528232932,-1681.43,0.00020784,2]
[343243482,1732528232942,-528.45,0.00020784,2]
[343243483,1732528232952,-500.0,0.00020784,2]
[343243484,1732528232961,-176.12478133,0.00020788,2]
[343243485,1732528232971,-500.0,0.00020788,2]
[343243486,1732528232980,-500.0,0.00020788,2]
[343243487,1732528232989,-500.0,0.00020788,2]
[343243488,1732528232999,-500.0,0.00020788,2]
[343243489,1732528233008,-500.00000001,0.00020788,2]
[343243490,1732528233018,-500.0,0.00020788,2]
[343243491,1732528233027,-500.0,0.00020788,2]
[343243492,1732528233037,-428.18998239,0.00020788,2]
[343243493,1732528233047,-200.0,0.00020788,2]
[343243494,1732528233147,-500.0,0.00020788,2]
[343243495,1732528233159,-500.0,0.00020788,2]
[343243496,1732528233169,-500.0,0.00020788,2]
[343243497,1732528233179,-500.0,0.00020788,2]
[343243498,1732528233189,-500.0,0.00020788,2]
[343243499,1732528233199,-500.0,0.00020788,2]
[343243500,1732528233209,-500.0,0.00020788,2]
[343243501,1732528233220,-500.0,0.00020788,2]
[343243502,1732528233230,-12421.3883534,0.00020789,2]
[343243503,1732528233240,-500.0,0.00021058,2]
[343243504,1732528233250,-2264.53,0.00021058,2]
[343243505,1732528233260,-1681.43,0.00021058,2]
[343243506,1732528233269,-528.45,0.00021058,2]
[343243507,1732528233280,-500.0,0.00021058,2]
[343243508,1732528233290,-500.0,0.00021062,2]
[343243509,1732528233301,-500.0,0.00021062,2]
[343243510,1732528233314,-500.0,0.00021062,2]
[343243511,1732528233324,-500.0,0.00021062,2]
[343243512,1732528233334,-500.0,0.00021062,2]
[343243513,1732528233344,-200.0,0.00021062,2]
[343243514,1732528233353,-306.33583472,0.00021062,2]
[343243515,1732528233362,-500.0,0.00021062,2]
[343243516,1732528233371,-500.0,0.00021062,2]
[343243517,1732528233381,-500.0,0.00021062,2]
[343243518,1732528233391,-500.0,0.00021062,2]
[343243519,1732528233401,-500.0,0.00021062,2]
[343243520,1732528233412,-500.0,0.00021062,2]
[343243521,1732528233421,-500.0,0.00021062,2]
[343243522,1732528233430,-251.904315,0.0002118,2]
[343243523,1732528233439,-500.0,0.00021332,2]
[343243524,1732528233448,-2264.53,0.00021332,2]
[343243525,1732528233457,-1681.43,0.00021332,2]
[343243526,1732528233467,-528.45,0.00021332,2]
[343243527,1732528233478,-500.0,0.00021332,2]
[343243528,1732528233487,-500.0,0.00021336,2]
[343243529,1732528233497,-285.82551538,0.00021336,2]
[343243530,1732528233507,-424.52483343,0.00021336,2]
[343243531,1732528233516,-500.0,0.00021336,2]
[343243532,1732528233525,-500.0,0.00021336,2]
[343243533,1732528233535,-200.0,0.00021336,2]
[343243534,1732528233544,-500.0,0.00021336,2]
[343243535,1732528233554,-500.0,0.00021336,2]
[343243536,1732528233566,-500.0,0.00021336,2]
[343243537,1732528233576,-491.8172539,0.00021336,2]
[343243538,1732528233586,-500.0,0.00021336,2]
[343243539,1732528233596,-500.0,0.00021336,2]
[343243540,1732528233607,-546.96010133,0.00021336,2]
[343243541,1732528233618,-251.904315,0.00021378,2]
[343243542,1732528233629,-5822.89967485,0.00021454,2]
[343243543,1732528233639,-500.0,0.00021553,2]
[343243544,1732528233649,-500.0,0.00021553,2]
[343243545,1732528233659,-500.0,0.00021553,2]
[343243546,1732528233668,-8800.3,0.00021553,2]
[343243547,1732528233679,-500.0,0.00021553,2]
[343243548,1732528233688,-500.0,0.00021553,2]
[343243549,1732528233698,-500.0,0.00021553,2]
[343243550,1732528233708,-500.0,0.00021553,2]
[343243551,1732528233721,-500.0,0.00021553,2]
[343243552,1732528233736,-500.0,0.00021553,2]
[343243553,1732528233746,-500.0,0.00021553,2]
[343243554,1732528233756,-500.0,0.00021553,2]
[343243555,1732528233767,-500.0,0.00021553,2]
[343243556,1732528233777,-500.0,0.00021553,2]
[343243557,1732528233787,-500.0,0.00021553,2]
[343243558,1732528233799,-500.0,0.00021553,2]
[343243559,1732528233813,-500.0,0.00021553,2]
[343243560,1732528233823,-500.0,0.00021553,2]
[343243561,1732528233833,-275.01680886,0.00021554,2]
[343243562,1732528233843,-201.92910195,0.00021554,2]
[343243563,1732528233854,-500.0,0.00021554,2]
[343243564,1732528233864,-238.08631391,0.00021554,2]
[343243565,1732528233874,-500.0,0.00021555,2]
[343243566,1732528233884,-500.0,0.00021555,2]
[343243567,1732528233895,-500.0,0.00021555,2]
[343243568,1732528233905,-500.0,0.00021555,2]
[343243569,1732528233915,-500.0,0.00021555,2]
[343243570,1732528233924,-500.0,0.00021555,2]
[343243571,1732528233934,-503.5850989,0.00021555,2]
[343243572,1732528233944,-500.0,0.00021555,2]
[343243573,1732528233954,-534.87,0.00021555,2]
[343243574,1732528233964,-506.30583531,0.00021555,2]
[343243575,1732528233974,-500.0,0.00021555,2]
[343243576,1732528233984,-500.0,0.00021555,2]
[343243577,1732528233994,-500.0,0.00021555,2]
[343243578,1732528234004,-500.0,0.00021555,2]
[343243579,1732528234014,-500.0,0.00021555,2]
[343243580,1732528234024,-500.0,0.00021555,2]
[343243581,1732528234035,-506.4728693,0.00021555,2]
[343243582,1732528234045,-500.0,0.00021555,2]
[343243583,1732528234055,-500.0,0.00021555,2]
[343243584,1732528234069,-500.0,0.00021555,2]
[343243585,1732528234079,-500.0,0.00021555,2]
[343243586,1732528234089,-500.0,0.00021555,2]
[343243587,1732528234099,-500.0,0.00021555,2]
[343243588,1732528234109,-500.0,0.00021555,2]
[343243589,1732528234119,-500.0,0.00021555,2]
[343243590,1732528234128,-500.0,0.00021555,2]
[343243591,1732528234138,-500.0,0.00021555,2]
[343243592,1732528234149,-500.0,0.00021555,2]
[343243593,1732528234159,-500.0,0.00021555,2]
[343243594,1732528234169,-622.12809893,0.00021555,2]
[343243595,1732528234179,-500.0,0.00021555,2]
[343243596,1732528234190,-500.0,0.00021555,2]
[343243597,1732528234199,-500.0,0.00021555,2]
[343243598,1732528234209,-500.0,0.00021555,2]
[343243599,1732528234220,-500.0,0.00021555,2]
[343243600,1732528234230,-500.0,0.00021555,2]
[343243601,1732528234239,-465.68436804,0.00021555,2]
[343243602,1732528234249,-500.0,0.00021555,2]
[343243603,1732528234259,-500.0,0.00021555,2]
[343243604,1732528234269,-500.0,0.00021555,2]
[343243605,1732528234279,-500.0,0.00021555,2]
[343243606,1732528234288,-500.0,0.00021555,2]
[343243607,1732528234297,-500.0,0.00021555,2]
[343243608,1732528234307,-500.0,0.00021555,2]
[343243609,1732528234319,-500.0,0.00021555,2]
[343243610,1732528234329,-251.904315,0.00021576,2]
[343243611,1732528234339,-500.0,0.00021606,2]
[343243612,1732528234349,-2264.53,0.00021606,2]
[343243613,1732528234359,-1681.43,0.00021606,2]
[343243614,1732528234369,-528.45,0.00021606,2]
[343243615,1732528234379,-500.0,0.00021606,2]
[343243616,1732528234389,-500.0,0.0002161,2]
[343243617,1732528234399,-500.0,0.0002161,2]
[343243618,1732528234409,-500.0,0.0002161,2]
[343243619,1732528234418,-200.0,0.0002161,2]
[343243620,1732528234427,-500.0,0.0002161,2]
[343243621,1732528234437,-500.0,0.0002161,2]
[343243622,1732528234446,-500.0,0.0002161,2]
[343243623,1732528234456,-500.0,0.0002161,2]
[343243624,1732528234466,-500.0,0.0002161,2]
[343243625,1732528234475,-251.904315,0.00021774,2]
[343243626,1732528234485,-602.68,0.00021807,3]
[343243627,1732528234494,-1607.1,0.00021817,3]
[343243628,1732528234504,-803.55,0.00021817,3]
[343243629,1732528234512,-401.77,0.00021817,3]
[343243630,1732528234521,-200.89,0.00021817,3]
[343243631,1732528234530,-500.0,0.00021827,2]
[343243632,1732528234539,-500.0,0.00021827,2]
[343243633,1732528234548,-8800.3,0.00021827,2]
[343243634,1732528234557,-500.0,0.00021827,2]
[343243635,1732528234569,-500.0,0.00021827,2]
[343243636,1732528234579,-500.0,0.00021827,2]
[343243637,1732528234591,-500.0,0.00021827,2]
[343243638,1732528234601,-500.0,0.00021827,2]
[343243639,1732528234610,-500.0,0.00021827,2]
[343243640,1732528234620,-500.0,0.00021827,2]
[343243641,1732528234628,-500.0,0.00021827,2]
[343243642,1732528234637,-221.88389917,0.00021827,2]
[343243643,1732528234645,-500.0,0.00021827,2]
[343243644,1732528234653,-500.0,0.00021827,2]
[343243645,1732528234662,-500.0,0.00021827,2]
[343243646,1732528234671,-500.0,0.00021827,2]
[343243647,1732528234678,-500.0,0.00021827,2]
[343243648,1732528234686,-500.0,0.00021829,2]
[343243649,1732528234694,-500.0,0.00021829,2]
[343243650,1732528234703,-500.0,0.00021829,2]
[343243651,1732528234712,-500.0,0.00021829,2]
[343243652,1732528234723,-500.0,0.00021829,2]
[343243653,1732528234732,-604.38159033,0.00021829,2]
[343243654,1732528234740,-534.87,0.00021829,2]
[343243655,1732528234750,-500.0,0.00021829,2]
[343243656,1732528234761,-500.0,0.00021829,2]
[343243657,1732528234769,-500.0,0.00021829,2]
[343243658,1732528234779,-500.0,0.00021829,2]
[343243659,1732528234788,-500.0,0.00021829,2]
[343243660,1732528234797,-500.0,0.00021829,2]
[343243661,1732528234807,-500.0,0.00021829,2]
[343243662,1732528234818,-500.0,0.00021829,2]
[343243663,1732528234828,-500.0,0.00021829,2]
[343243664,1732528234837,-500.0,0.00021829,2]
[343243665,1732528234846,-500.0,0.00021829,2]
[343243666,1732528234855,-500.0,0.00021829,2]
[343243667,1732528234864,-500.0,0.00021829,2]
[343243668,1732528234873,-500.0,0.00021829,2]
[343243669,1732528234960,-500.0,0.00021829,2]
[343243670,1732528234970,-500.0,0.00021829,2]
[343243671,1732528234979,-500.0,0.00021829,2]
[343243672,1732528234989,-500.0,0.00021829,2]
[343243673,1732528234998,-500.0,0.00021829,2]